Cogmind - Beta 16 @@@ ROGUE MODE // 2025.12.19 @ 03:23:34 Player: War__Prophet Result: Destroyed by Y-45 Defender with Beam Rifle Performance ------------- Evolutions (1) 500 Regions Visited (3) 600 Robots Destroyed (57) 285 Value Destroyed (1397) 1397 Prototype IDs (4) 80 Alien Tech Used (0) 0 Bonus (19) 19 TOTAL SCORE: 2881 Bonus ------- High Alert Combat Kills 19 Cogmind --------- Core Integrity 0/400 Matter 41/300 Energy 100/100 System Corruption 0% Temperature Cool (11) Movement Flying (40) Location -9/Storage Parts ------- > --- POWER (1) -------- (None) > --- PROPULSION (4) --- Flight Unit > --- UTILITY (2) ------ (None) > --- WEAPON (2) ------- (None) > --- INVENTORY (5) ---- Light Assault Rifle Improved Assault Rifle Improved Light Cannon Mini Grenade Launcher Mini Grenade Launcher Peak State ------------ > --- POWER ------------ Light Ion Engine > --- PROPULSION ------- Improved Aluminum Leg Improved Aluminum Leg Improved Aluminum Leg Improved Aluminum Leg > --- UTILITY ---------- Improved Heat Sink Small Storage Unit > --- WEAPON ----------- Light Cannon Light Cannon > --- INVENTORY -------- Assault Rifle Light Assault Rifle Light Assault Rifle Light Cannon Grenade Launcher [Rating: 15] Favorites ----------- Power Light Ion Engine Engine Light Ion Engine Propulsion Improved Aluminum Leg Leg Improved Aluminum Leg Wheel Wheel Flight Unit Flight Unit Utility Small Storage Unit Device Improved Heat Sink Storage Small Storage Unit Weapon Light Cannon Ballistic Gun Assault Rifle Ballistic Cannon Light Cannon Launcher Grenade Launcher Build | -11 -10 -9 -9 ------- Run | Yrd Mat Mat Sto Slots Evolved 2 | . . 2 . Power . | . . . . Propulsion 2 | . . 2 . Utility . | . . . . Weapon . | . . . . Parts Attached 33 | 6 6 16 5 Power 3 | 1 1 . 1 Engine 3 | 1 1 . 1 Core . | . . . . Reactor . | . . . . Propulsion 16 | 2 2 11 1 Treads . | . . . . Leg 5 | . 2 3 . Wheel 8 | 2 . 6 . Hover . | . . . . Flight 3 | . . 2 1 Utility 2 | 1 1 . . Device 1 | . 1 . . Storage 1 | 1 . . . Processor . | . . . . Hackware . | . . . . Protection . | . . . . Artifact . | . . . . Weapon 12 | 2 2 5 3 Energy Gun . | . . . . Energy Cannon . | . . . . Ballistic Gun 6 | 2 . 2 2 Ballistic Cannon 4 | . 2 2 . Launcher 2 | . . 1 1 Special Weapon . | . . . . Impact Weapon . | . . . . Slashing Weapon . | . . . . Piercing Weapon . | . . . . Special Melee Weapon . | . . . . Unidentified Prototypes 4 | . . 2 2 Parts Lost 14 | . . 13 1 Power 1 | . . 1 . Propulsion 8 | . . 7 1 Utility 1 | . . 1 . Weapon 4 | . . 4 . Highest Loss Streak 4 | . . 4 1 To Critical Strikes . | . . . . Average Backups 5 | 1 6 4 7 Power . | . . . . Propulsion . | . 1 . . Utility . | . . . . Weapon 4 | . 4 3 7 Tool/Special . | . . . . Unused Backups 4 | . . . 4 Power . | . . . . Propulsion . | . . . . Utility . | . . . . Weapon 4 | . . . 4 Tool/Special . | . . . . Average Slot Usage (%) 76 | . 94 72 41 Engine 5 | . 14 2 4 Leg 13 | . 16 13 . Wheel 17 | . 10 21 11 Device 3 | . 10 1 . Storage 11 | . 14 11 8 Ballistic Gun 5 | . 2 6 8 Ballistic Cannon 16 | . 25 13 . Launcher 1 | . . . 7 Peak Build Rating 15 | 6 12 15 12 Average Rating 8 | 4 9 8 7 On Entrance 6 | . 6 11 7 Avg Prop Armor Cover (%) 12 | . . 12 . Naked Turns 7 | . . . 7 Heaviest Build 19 | 11 15 15 19 Greatest Support 52 | 20 26 52 26 Greatest Overweight (x) 4 | . 4 3 1 Average Overweight (x) . | . . . . Largest Inventory Capacity 8 | 8 8 8 8 Average Capacity 7 | 6 8 8 7 Most Carried 8 | 2 8 8 8 Average Carried 5 | 1 6 4 7 Final Capacity 8 | 8 8 8 5 Final Carried 8 | 2 7 8 5 Class Distribution -------------------- 71% | Mutant 28% | Scavenger-Mutant Dominant Class ---------------- Mutant | -10/Materials Mutant | -9/Materials Mutant | -9/Storage Resources | -11 -10 -9 -9 ----------- Run | Yrd Mat Mat Sto Matter Collected 1370 | 197 353 786 34 Remotely . | . . . . Salvage Created 1607 | . 246 1251 110 Parts 95 | . 15 75 5 Haulers Intercepted 3 | . . 2 1 Recyclers Shooed 5 | . . 5 . Parts Field Recycled . | . . . . Retrieved Matter . | . . . . Parts Self-Destructed . | . . . . Prevented . | . . . . Parts Restored . | . . . . Kills | -11 -10 -9 -9 ------- Run | Yrd Mat Mat Sto Combat Hostiles Destroyed 38 | . 6 28 4 Guns 4 | . . 4 . Cannons 16 | . 6 10 . AOE 18 | . . 14 4 Classes Destroyed 11 | . 2 9 . Worker 2 | . . 2 . Builder 3 | . . 3 . Hauler 3 | . . 2 1 Recycler 7 | . 1 6 . Operator 1 | . . 1 . Watcher 3 | . . 2 1 Swarmer 8 | . . 8 . Grunt 21 | . 6 12 3 Brawler 1 | . . 1 . Duelist 1 | . . 1 . Sentry 7 | . . 6 1 Best Kill Streak 7 | . 3 7 6 Combat Bots Only 7 | . 3 7 4 Max Kills in Single Turn 3 | . 1 3 2 Gunslinging . | . . . . Exploded 3 | . . 3 1 Melee . | . . . . Uniques/NPCs Destroyed . | . . . . Combat | -11 -10 -9 -9 -------- Run | Yrd Mat Mat Sto Hostile Shots Fired 219 | . 28 176 15 Missed 72 | . 5 59 8 Hits 147 | . 23 117 7 Melee 4 | . . 4 . Projectile 143 | . 23 113 7 Critical Strikes 7 | . . 7 . Damage Taken 1863 | . 274 1451 138 Core 453 | . 50 319 84 Absorbed by Shields . | . . . . Core Remaining (%) 90 | 100 80 . . Volleys Fired 137 | . 25 105 7 Largest 2 | . 2 2 2 Hottest 63 | . 60 63 53 Shots Fired 261 | . 50 197 14 Gun 69 | . . 61 8 Cannon 174 | . 50 124 . Launcher 18 | . . 12 6 Special . | . . . . Kinetic 243 | . 50 185 8 Thermal . | . . . . Explosive 18 | . . 12 6 Electromagnetic . | . . . . Robot Hit Streak 9 | . 6 9 4 Robot Miss Streak 5 | . 3 5 1 Penetration Max . | . . . . Secondary Targets . | . . . . Shots Hit Robots 132 | . 24 107 1 Core Hits 83 | . 8 64 11 Critical Kills . | . . . . Critical Parts Destroyed 1 | . . 1 . Critical Strikes 4 | . . 4 . Destroy 1 | . . 1 . Blast 3 | . . 3 . Melee Attacks . | . . . . Impact . | . . . . Slashing . | . . . . Piercing . | . . . . Sneak Attacks . | . . . . Combat Hostiles . | . . . . Follow-up Attacks . | . . . . Damage Inflicted 3767 | . 400 2843 524 Guns 479 | . . 423 56 Cannons 1772 | . 400 1372 . Explosions 1505 | . . 1037 468 Melee . | . . . . Ramming 11 | . . 11 . Kinetic 2251 | . 400 1795 56 Thermal . | . . . . Explosive 1505 | . . 1037 468 Electromagnetic . | . . . . Impact . | . . . . Slashing . | . . . . Piercing . | . . . . Highest Corruption . | . . . . Average Corruption . | . . . . Corruption Purged . | . . . . Corruption Blocked . | . . . . Overload Shots . | . . . . Overflow Damage 55 | . . 39 16 Projectiles 21 | . . 21 . Explosions 34 | . . 18 16 Melee . | . . . . Knockbacks 20 | . 7 13 . Impact . | . . . . Kinetic 18 | . 6 12 . Secondary 2 | . 1 1 . Self-Inflicted Damage 185 | . . 126 59 Shots 8 | . . 6 2 Rammed . | . . . . Targets Rammed 1 | . . 1 . Kicked 1 | . . 1 . Crushed . | . . . . Highest Temperature 36 | . 36 24 6 Average Temperature 11 | . 22 6 2 Received Heat Transfer 606 | . 150 408 48 Siege Activations . | . . . . Martial Activations . | . . . . Shielding Activations . | . . . . Robots Disrupted . | . . . . Combat Hostiles . | . . . . Robots Corrupted . | . . . . Combat Hostiles . | . . . . Parts Fried . | . . . . Impact Corruptions . | . . . . Robots Melted . | . . . . Combat Hostiles . | . . . . Parts Melted . | . . . . Heat Transferred . | . . . . Parts Sabotaged . | . . . . Parts Stolen . | . . . . Parts Stripped . | . . . . Power Chain Reactions . | . . . . Alert | -11 -10 -9 -9 ------- Run | Yrd Mat Mat Sto Maximum Alert Level 2 | . . 2 1 Low Security (%) 48 | 100 100 19 63 Level 1 49 | . . 77 36 Level 2 2 | . . 3 . Level 3 . | . . . . Level 4 . | . . . . Level 5 . | . . . . High Security . | . . . . Max Security . | . . . . Peak Influence 435 | . 84 435 286 Initial 180 | . . 31 180 Average 158 | . 17 228 210 Influence Increases 1252 | . 199 907 146 Destroy 0b10 Robot/C 760 | . 120 560 80 Destroy 0b10 Robot/NC 95 | . 5 80 10 Destroy Leader 182 | . 30 138 14 Successful Hack 20 | . 14 6 . Disable Machine 75 | . 30 30 15 Destroy Structure 90 | . . 63 27 Partial Spotted 15 | . . 15 . Lose Combat Pursuer 15 | . . 15 . Influence Decreases 986 | . 123 555 308 Entered New Map 293 | . . 45 248 Time Decay 553 | . 123 380 50 Lost Part 140 | . . 130 10 Squads Dispatched 8 | . 3 5 . Investigation 5 | . 2 3 . Extermination . | . . . . Reinforcement 3 | . 1 2 . Assault . | . . . . Garrison . | . . . . Intercept . | . . . . Searches Triggered . | . . . . Construction Impeded . | . . . . Haulers Reinforced . | . . . . Active Scanning Responses . | . . . . Cargo Convoy Interrupts . | . . . . Stealth | -11 -10 -9 -9 --------- Run | Yrd Mat Mat Sto Distress Signals 3 | . . 2 1 Communications Jammed . | . . . . Distress Signals . | . . . . Times Spotted 56 | . 11 37 8 Peak Tracking Total 7 | . 3 7 5 Tactical Retreats 1 | . . 1 . Traps | -11 -10 -9 -9 ------- Run | Yrd Mat Mat Sto Traps Triggered 2 | . 1 1 . Indirectly . | . . . . Trap Hack Attempts . | . . . . Triggered . | . . . . Disarmed . | . . . . Reprogrammed . | . . . . Reused . | . . . . Traps Extracted . | . . . . Installed . | . . . . Triggered . | . . . . Machines | -11 -10 -9 -9 ---------- Run | Yrd Mat Mat Sto Machines Disabled 5 | . 2 2 1 Max in Single Turn 1 | . 1 1 1 Machines Repaired . | . . . . Machines Dismantled . | . . . . Machines Sabotaged . | . . . . Overloaded Fab Kills . | . . . . Hacking | -11 -10 -9 -9 --------- Run | Yrd Mat Mat Sto Machines Accessed 13 | . 6 7 . Terminals 13 | . 6 7 . Fabricators . | . . . . Repair Stations . | . . . . Recycling Units . | . . . . Scanalyzers . | . . . . Garrison Access . | . . . . Total Hacks 27 | . 11 16 . Successful 13 | . 5 8 . Failed 14 | . 6 8 . Catastrophic 1 | . 1 . . Database Lockouts . | . . . . Manual 27 | . 11 16 . Terminals 27 | . 11 16 . Fabricators . | . . . . Repair Stations . | . . . . Recycling Units . | . . . . Scanalyzers . | . . . . Garrison Access . | . . . . Terminal Hacks . | . . . . Fabricator Hacks . | . . . . Repair Station Hacks . | . . . . Recycling Unit Hacks . | . . . . Scanalyzer . | . . . . Garrison Access Hacks . | . . . . Unauthorized Hacks 13 | . 5 8 . Terminals 13 | . 5 8 . Botnet 1 | . . 1 . Skim 12 | . 5 7 . Fabricators . | . . . . Repair Stations . | . . . . Recycling Units . | . . . . Scanalyzers . | . . . . Garrison Access . | . . . . Data Cores Recovered . | . . . . Used . | . . . . Hacking Detections 6 | . 2 4 . Full Trace Events 4 | . 2 2 . Feedback Events . | . . . . Feedback Blocked . | . . . . Robot Schematics Acquired . | . . . . Robots Built . | . . . . Authchips . | . . . . Time . | . . . . Total Robot Build Rating . | . . . . Part Schematics Acquired . | . . . . Parts Built . | . . . . Authchips . | . . . . Time . | . . . . Total Part Build Rating . | . . . . Part Studies Acquired . | . . . . Parts Repaired . | . . . . Time . | . . . . Parts Recycled . | . . . . Recycled Matter . | . . . . Retrieved Matter . | . . . . Retrieved Components . | . . . . Parts Scanalyzed . | . . . . Part Schematics Acquired . | . . . . Parts Damaged . | . . . . Bothacking | -11 -10 -9 -9 ------------ Run | Yrd Mat Mat Sto Used RIF Installer . | . . . . Robots Hacked . | . . . . Non-combat . | . . . . Combat . | . . . . Robot Hacks Applied . | . . . . Relay Couplers Released . | . . . . Fabnet Peak Effective % . | . . . . Robots Rewired . | . . . . Allies Hacked . | . . . . Hacks Repelled . | . . . . Allies | -11 -10 -9 -9 -------- Run | Yrd Mat Mat Sto Total Allies . | . . . . Largest Group . | . . . . Highest-Rated Group . | . . . . Highest-Rated Ally . | . . . . Total Orders . | . . . . Ally Attacks . | . . . . Total Damage . | . . . . Kills . | . . . . Allies Corrupted . | . . . . Allies Melted . | . . . . Intel | -11 -10 -9 -9 ------- Run | Yrd Mat Mat Sto Active Infowar (turns) . | . . . . Robot Analysis Total . | . . . . Derelict Logs Recovered . | . . . . Drone Launches . | . . . . Drone Recoveries . | . . . . Exploration | -11 -10 -9 -9 ------------- Run | Yrd Mat Mat Sto Turns Passed 1481 | 59 417 893 112 Spaces Moved 994 | 57 308 515 114 Core 31 | 1 1 16 13 Treads . | . . . . Legs 356 | . 168 188 . Wheels 563 | 56 139 310 58 Hover . | . . . . Flight 44 | . . 1 43 Fastest Speed 40 | 50 80 86 40 Average Speed 99 | 79 103 105 72 Slowest Speed 250 | 80 250 200 115 Overloaded Moves . | . . . . Propulsion Burnouts . | . . . . Robots Hopped . | . . . . Potential Cave-ins . | . . . . Cave-ins Triggered . | . . . . Exploration Rate (%) 37 | 3 65 56 27 Regions Visited 3 Branch Regions 1 Pre-discovered Areas . | . . . . Known Exits Taken . | . . . . Unknown Exits Taken 3 | 1 1 1 . Scrap Searched . | . . . . Spaces Dug . | . . . . Terrain Destroyed 101 | . . 68 33 Melee . | . . . . Projectile 7 | . . 7 . AOE 94 | . . 61 33 Terrain Rammed . | . . . . Walls Destroyed . | . . . . Machines Disabled . | . . . . Actions | -11 -10 -9 -9 --------- Run | Yrd Mat Mat Sto Total 1215 | 67 355 665 128 Wait 13 | 3 5 5 . Move 991 | 56 307 514 114 Hop . | . . . . Pick Up 11 | 2 4 5 . Fast Attach 27 | 6 8 9 4 Attach 8 | . . 8 . Detach 8 | . 2 6 . Swap 9 | . 1 7 1 Drop 10 | . 3 5 2 Fire 137 | . 25 105 7 Melee . | . . . . Ram . | . . . . Kick 1 | . . 1 . Crush . | . . . . Escape Stasis . | . . . . Rewire . | . . . . Trap . | . . . . Miscellaneous . | . . . . Route ------- -11/Scrapyard -10/Materials (discovered 3 exits: *Mat x2 / [*Min]) -9/Materials (discovered 3 exits: [*Mat x2] / [*Sto]) -9/Storage History --------- Turn | Location | Event 10 | -11/Scrapyard | Discovered new exit (range 15) 60 | -11/Scrapyard | Entered Materials 187 | -10/Materials | Discovered new exit (range 6) 272 | -10/Materials | Discovered new exit (range 16) 304 | -10/Materials | Build established: Mutant 445 | -10/Materials | Discovered new exit (range 16) 477 | -10/Materials | Entered another Materials area 477 | -9/Materials | Evolved 2 slots: Propulsion x2 643 | -9/Materials | Destroyed 7 combat bots 649 | -9/Materials | Lost 4 parts (1n1u2w) 727 | -9/Materials | Lost 4 parts (1p2n1w) 940 | -9/Materials | Core integrity fell below 50% 997 | -9/Materials | Discovered new exit (range 10) 1115 | -9/Materials | Discovered new exit (range 7) 1223 | -9/Materials | Build established: Scavenger-Mutant 1344 | -9/Materials | Discovered new exit (range 15) 1370 | -9/Materials | Entered Storage 1399 | -9/Storage | Core integrity fell below 20% 1457 | -9/Storage | Released all parts (5) 1482 | -9/Storage | Destroyed by Y-45 Defender with Beam Rifle Last Messages --------------- 01442_ U-05 Engineer lays Concrete. 01442_ A-02 Transporter destroyed. 01443_ U-05 Engineer lays Concrete. 01444_ A-02 Transporter destroyed. 01444_ G-34 Mercenary destroyed. 01446_ U-05 Engineer builds a Wall. 01447_ G-34 Mercenary destroyed. 01454_ U-05 Engineer builds a Wall. 01455_ The unstable cave ceiling collapses. 01455_ R-06 Scavenger collects Prototype Energy Gun. 01455_ Acquired 34 matter. 01457_ Released Mni. Grenade Launcher. 01457_ Released Imp. Assault Rifle. 01457_ Released Sml. Storage Unit. 01457_ Released Com. Wheel. 01457_ Released Hvy. Ion Engine. 01458_ R-06 Scavenger collects Prototype Energy Gun. 01458_ U-05 Engineer lays Concrete. 01460_ K-01 Serf collects debris. 01464_ Acquired Flight Unit. Map ----- +----------------------------------------------------+ | ??????????????????????# %*]= ## # """ #? | | ??????????????????????#!!! [ ### # """ #? | | ??????????????????????#!! [%[ ### # #? | | ??????????????????????#!! = [ ## # ??? | | ??????????????????????# = [ ### ##+#???? | | ??????????????????????##### # # #?# #???? | | ??????????????????????????###### ###+## #???? | | ???????????????????????????????# #! # #???? | | ???????????????????????????????# #% # #???? | | ???????????????????????????????# # # #???? | | ???????????????????????????????# # # #???? | | ???????????????????????????????# # / #???? | | ???????????????????????????????# #!/ ] # #???? | | ???????????????????????????????# ##+##### #???? | | ???????????????????????????????# #???? | | ???????????????????????????????##/######### #???? | | ???????????????????????????????? ????????# #???? | | ???????????????????????????????? ????????# #???? | | ????????????????????????????????" ????????# #???? | | ????????????????????????????????" ????????# #???? | | ????????????????????????????????? ????????# #???? | | ????????????#+###################+##??????# #???? | | ??????????? #??????# #???? | | ??????????? a ######## #???? | | ??????????? #???? | | ??????????????????#######@ ################ #???? | | ????????????????????????# #??????????????# #???? | | ????????????????????????# #??????????????# #???? | | ????????????????????????# #??????????????# #???? | | ???????????????????????? ??????????????# #???? | | ???????????????????????# Y ??????????????# #???? | | ???????????????????????# ?????????????# #???? | | ???????????????????????+ #?????????????? ????? | | ???????????????????????######??????????????+????? | | ????????????????????????????????????????????????? | | ????????????????????????????????????????????????? | | ????????????????????????????????????????????????? | | ????????????????????????????????????????????????? | | ????????????????????????????????????????????????? | | ????????????????????????????????????????????????? | | ????????????????????????????????????????????????? | | ????????????????????????????????????????????????? | | ????????????????????????????????????????????????? | | | | | | | | | | | | | | | +----------------------------------------------------+ Best States ------------- Heat Dissipation 42 Energy Generation 14 Energy Capacity 280 Matter Stores 300 Matter Capacity 300 Sight Range 16 Terrain Scan Density 10 Evasion (%) 62 Item Schematics ----------------- None Robot Schematics ------------------ None Fabricated ------------ Nothing Repaired ---------- Nothing Studied --------- None Alien Tech Used ----------------- None Achievements -------------- None Challenges ------------ None Game ------ Seed ArchitectCoolingRouter Manual? 0 Play Time 00:11:18 Cumulative 53.5 hours Start 2025.12.19 @ 03:12:51 End 2025.12.19 @ 03:23:34 Sessions 1 Manual Loads 0 Difficulty Rogue Special Mode None Game No. 207 Rogue 207 Adventurer 0 Explorer 0 Win Type - Total 0 Types 0/0/0/0/0/0/0/0/0/0 Lore% 12 Gallery% 38 Achievement% 25 Wizard Run 0 Options --------- Layout 1 ASCII 0 Keyboard 1 Movement Vi Keybinds 0 Fullscreen 1 Font 16/SmallcapsGlow Map View 55x38 Zoom Use 0% Tactical HUD 1 Map Filters NONE Filters NONE Steam X RUN: 9147b535-f887-4751-a9a4-ea676e52d19c